fUSD/lending_fUSD_20260308
["ID","MTS","AMOUNT","RATE_DAILY","PERIOD"]
[407982870,1772967032289,-5000.0,0.00013166,2]
[407982871,1772967032299,-500.0,0.00013166,3]
[407982872,1772967032309,-166.66,0.00013198,2]
[407982873,1772967032318,-3240.0,0.00013425,2]
[407982874,1772967032328,-166.66,0.00013464,2]
[407982875,1772967032338,-5271.15,0.00013465,2]
[407982876,1772967032347,-1545.02,0.00013465,2]
[407982877,1772967032356,-499.99,0.00013465,2]
[407982878,1772967032366,-9999.99,0.00013465,2]
[407982879,1772967032375,-150.99,0.00013465,2]
[407982880,1772967032384,-19999.99,0.00013465,2]
[407982881,1772967032393,-999.99,0.00013465,2]
[407982882,1772967032402,-558.51,0.00013465,2]
[407982883,1772967032411,-9999.99,0.00013465,2]
[407982884,1772967032421,-299.99,0.00013465,2]
[407982885,1772967032431,-430.25,0.00013465,2]
[407982886,1772967032440,-150.99,0.00013465,2]
[407982887,1772967032449,-507.03,0.00013465,2]
[407982888,1772967032458,-9999.99,0.00013465,2]
[407982889,1772967032468,-9732.73,0.00013465,2]
[407982890,1772967032477,-175.0,0.00013557,2]
[407982891,1772967032487,-250.0,0.0001356,2]
[407982892,1772967032497,-1746.44,0.00013699,2]
[407982893,1772967032506,-166.66,0.00013731,2]
[407982894,1772967032515,-1500.0,0.00013792,2]
[407982895,1772967032524,-166.4,0.00013797,2]
[407982896,1772967032534,-5271.15,0.00013839,2]
[407982897,1772967032543,-1428.0,0.00013954,2]
[407982898,1772967032553,-1565.0,0.00013982,2]
[407982899,1772967032562,-157.07,0.00013985,2]
[407982900,1772967032574,-348.0,0.0001399,2]
[407982901,1772967032585,-166.66,0.00013997,2]
[407982902,1772967032594,-4476.99615743,0.00013998,2]
[407982903,1772967032604,-225.51,0.00014,2]
[407982904,1772967032613,-1680.0,0.00014029,2]
[407982905,1772967032623,-5271.15,0.00014213,2]
[407982906,1772967032632,-255.0,0.00014271,2]
[407982907,1772967032642,-500.0,0.00014339,2]
[407982908,1772967032652,-225.51,0.00014339,2]
[407982909,1772967032662,-1746.44,0.00014384,2]
[407982910,1772967032671,-166.4,0.00014563,2]
[407982911,1772967032680,-500.0,0.00014613,2]
[407982912,1772967032690,-151.0,0.00014634,2]
[407982913,1772967032699,-151.0,0.00014634,2]
[407982914,1772967032709,-151.0,0.00014634,2]
[407982915,1772967032718,-151.0,0.00014634,2]
[407982916,1772967032728,-225.51,0.00014678,2]
[407982917,1772967032737,-922.46,0.00014683,2]
[407982918,1772967032746,-27604.95646441,0.00014773,2]
[407982919,1772967032756,-335.1728958,0.000148,2]
[407982920,1772967032765,-154.42543022,0.000148,2]
[407982921,1772967032775,-176.36983143,0.000148,2]
[407982922,1772967032784,-169.72019452,0.000148,2]
[407982923,1772967032794,-4746.17632909,0.00014812,2]
[407982924,1772967032803,-1579.507,0.00014815,2]
[407982925,1772967032813,-194.8913,0.00014815,2]
[407982926,1772967032823,-180.11276457,0.00014815,2]
[407982927,1772967032832,-17077.73871647,0.00014873,2]
[407982929,1772967032842,-910.41051486,0.00014873,2]
[407982931,1772967032851,-280.8020296,0.00014873,2]
[407982933,1772967032860,-395.93967342,0.00014873,2]
[407982935,1772967032869,-500.0,0.00014887,2]
[407982937,1772967032878,-721.08,0.00014902,2]
[407982939,1772967032888,-721.08,0.00014902,2]
[407982941,1772967032897,-613.49,0.00014905,2]
[407982943,1772967032906,-721.08,0.00014905,2]
[407982945,1772967032915,-721.08,0.00014905,2]
[407982947,1772967032924,-721.08,0.00014905,2]
[407982949,1772967032933,-606.73227021,0.00014905,2]
[407982951,1772967032942,-151.0,0.00014906,2]
[407982953,1772967032951,-151.0,0.00014906,2]
[407982955,1772967032960,-151.0,0.00014906,2]
[407982956,1772967032970,-151.0,0.00014906,2]
[407982957,1772967032979,-151.0,0.00014906,2]
[407982958,1772967032989,-151.0,0.00014906,2]
[407982959,1772967032998,-151.0,0.00014906,2]
[407982960,1772967033008,-151.0,0.00014906,2]
[407982961,1772967033017,-151.0,0.00014906,2]
[407982962,1772967033027,-151.0,0.00014906,2]
[407982963,1772967033036,-151.0,0.00014906,2]
[407982964,1772967033045,-151.0,0.00014906,2]
[407982965,1772967033058,-151.0,0.00014906,2]
[407982966,1772967033067,-151.0,0.00014906,2]
[407982967,1772967033076,-151.0,0.00014906,2]
[407982968,1772967033086,-151.0,0.00014906,2]
[407982969,1772967033095,-151.0,0.00014906,2]
[407982970,1772967033105,-151.0,0.00014906,2]
[407982971,1772967033114,-151.0,0.00014906,2]
[407982972,1772967033124,-151.0,0.00014906,2]
[407982973,1772967033140,-151.0,0.00014906,2]
[407982974,1772967033160,-151.42631785,0.00014906,2]
[407982975,1772967033180,-151.0,0.00014906,2]
[407982976,1772967033191,-151.0,0.00014906,2]
[407982977,1772967033202,-151.0,0.00014906,2]
[407982978,1772967033212,-151.0,0.00014906,2]
[407982979,1772967033222,-151.0,0.00014906,2]
[407982980,1772967033231,-151.0,0.00014906,2]
[407982981,1772967033240,-151.0,0.00014906,2]
[407982982,1772967033249,-151.0,0.00014906,2]
[407982983,1772967033258,-151.0,0.00014906,2]
[407982984,1772967033268,-151.0,0.00014906,2]
[407982985,1772967033277,-340.45331908,0.00014909,2]
[407982986,1772967033285,-474.32907331,0.00014909,2]
[407982987,1772967033295,-989.64029993,0.00014909,2]
[407982988,1772967033305,-989.64029993,0.00014909,2]
[407982989,1772967033315,-500.0,0.0001491,2]
[407982990,1772967033324,-96842.7946253,0.00014912,2]
[407982991,1772967033333,-20478.8933084,0.00014912,2]
[407982992,1772967033343,-151.0,0.00014912,2]
[407982993,1772967033353,-151.0,0.00014912,2]
[407982994,1772967033363,-151.0,0.00014912,2]
[407982995,1772967033375,-500.0,0.00014914,2]
[407982996,1772967033385,-239.71698079,0.00014914,2]
[407982997,1772967033395,-500.0,0.00014914,2]
[407982998,1772967033404,-500.0,0.00014914,2]
[407982999,1772967033413,-500.0,0.00014914,2]
[407983000,1772967033423,-500.0,0.00014914,2]
[407983001,1772967033432,-500.0,0.00014914,2]
[407983002,1772967033441,-500.0,0.00014914,2]
[407983003,1772967033451,-500.0,0.00014914,2]
[407983004,1772967033460,-500.0,0.00014914,2]
[407983005,1772967033469,-500.0,0.00014914,2]
[407983006,1772967033478,-251.67,0.00014914,2]
[407983007,1772967033488,-500.0,0.00014914,2]
[407983008,1772967033498,-397.96524811,0.00014914,2]
[407983009,1772967033507,-484.24391066,0.00014914,2]
[407983010,1772967033517,-500.0,0.00014914,2]
[407983011,1772967033526,-500.0,0.00014914,2]
[407983012,1772967033536,-410.8153508,0.00014914,2]
[407983013,1772967033545,-500.0,0.00014914,2]
[407983014,1772967033554,-500.0,0.00014914,2]
[407983015,1772967033564,-435.3034206,0.00014914,2]
[407983016,1772967033573,-162.46726597,0.00014914,2]
[407983017,1772967033582,-494779.78478095,0.00014915,2]
[407983018,1772967033596,-156023.63401636,0.00014915,2]
[407983019,1772967033608,-116521.03909626,0.00014915,2]
[407983020,1772967033619,-179148.09092466,0.00014915,2]
[407983021,1772967033630,-1254.41808677,0.00014915,2]
[407983022,1772967033641,-267.09849734,0.00014915,2]
[407983023,1772967033652,-1363.17503185,0.00014915,2]
[407983024,1772967033667,-793311.24839487,0.00014915,2]
[407983025,1772967033687,-989.64029993,0.00014909,2]
[407983026,1772967033697,-156.79307594,0.00014909,2]
[407983028,1772967038103,-832.84722399,0.00014909,2]
[407983029,1772967038112,-14.15277601,0.00014909,2]
[407983030,1772967038208,-975.48752392,0.00014909,2]
[407983031,1772967038217,-989.64029993,0.00014909,2]
[407983032,1772967038227,-989.64029993,0.00014909,2]
[407983033,1772967038236,-989.64029993,0.00014909,2]
[407983034,1772967038245,-349.00997626,0.00014909,2]
[407983035,1772967038256,-527.21780492,0.00014909,2]
[407983036,1772967038267,-113.41251875,0.00014909,2]
[407983037,1772967038276,-467.37608769,0.00014909,2]
[407983038,1772967038287,-522.26421224,0.00014909,2]
[407983039,1772967038296,-433.91434406,0.00014909,2]
[407983040,1772967038311,-555.72595587,0.00014909,2]
[407983041,1772967038321,-989.64029993,0.00014909,2]
[407983042,1772967038330,-989.64029993,0.00014909,2]
[407983043,1772967038339,-989.64029993,0.00014909,2]
[407983044,1772967038348,-989.64029993,0.00014909,2]
[407983045,1772967038357,-989.64029993,0.00014909,2]
[407983046,1772967038367,-989.64029993,0.00014909,2]
[407983047,1772967038376,-989.64029993,0.00014909,2]
[407983048,1772967038385,-989.64029993,0.00014909,2]
[407983049,1772967038394,-989.64029993,0.00014909,2]
[407983050,1772967038403,-989.64029993,0.00014909,2]
[407983051,1772967038412,-989.64029993,0.00014909,2]
[407983052,1772967038421,-989.64029993,0.00014909,2]
[407983053,1772967038430,-989.64029993,0.00014909,2]
[407983054,1772967038439,-989.64029993,0.00014909,2]
[407983055,1772967038448,-989.64029993,0.00014909,2]
[407983056,1772967038457,-989.64029993,0.00014909,2]
[407983057,1772967038467,-989.64029993,0.00014909,2]
[407983058,1772967038477,-989.64029993,0.00014909,2]
[407983060,1772967038487,-989.64029993,0.00014909,2]
[407983062,1772967038496,-989.64029993,0.00014909,2]
[407983064,1772967038506,-989.64029993,0.00014909,2]
[407983066,1772967038516,-989.64029993,0.00014909,2]
[407983067,1772967038525,-989.64029993,0.00014909,2]
[407983068,1772967038535,-989.64029993,0.00014909,2]
[407983069,1772967038544,-989.64029993,0.00014909,2]
[407983070,1772967038553,-989.64029993,0.00014909,2]
[407983072,1772967038563,-989.64029993,0.00014909,2]
[407983076,1772967038575,-989.64029993,0.00014909,2]
[407983078,1772967038584,-989.64029993,0.00014909,2]
[407983080,1772967038593,-989.64029993,0.00014909,2]
[407983082,1772967038602,-989.64029993,0.00014909,2]
[407983083,1772967038611,-989.64029993,0.00014909,2]
[407983084,1772967038620,-989.64029993,0.00014909,2]
[407983085,1772967038629,-989.64029993,0.00014909,2]
[407983086,1772967038638,-989.64029993,0.00014909,2]
[407983087,1772967038647,-500.0,0.00014973,2]
[407983088,1772967038658,-165.57407375,0.00014973,2]
[407983089,1772967038667,-226.54216259,0.00014973,2]
[407983090,1772967038676,-167.19031071,0.00014973,2]
[407983091,1772967038685,-500.0,0.00014973,2]
[407983092,1772967038695,-402.37041004,0.00014973,2]
[407983093,1772967038704,-500.0,0.00014973,2]
[407983094,1772967038713,-500.0,0.00014973,2]
[407983095,1772967038723,-198.14141269,0.00014973,2]
[407983096,1772967038732,-500.0,0.00014973,2]
[407983097,1772967038742,-500.0,0.00014973,2]
[407983098,1772967038751,-500.0,0.00014973,2]
[407983099,1772967038761,-500.0,0.00014973,2]
[407983100,1772967038945,-171.04889338,0.00014973,2]
[407983101,1772967038955,-501.5406921,0.00014973,2]
[407983102,1772967038965,-342.44463266,0.00014973,2]
[407983103,1772967038975,-500.0,0.00014973,2]
[407983104,1772967038984,-500.0,0.00014973,2]
[407983105,1772967038994,-500.0,0.00014973,2]
[407983106,1772967039004,-250.0,0.00015,2]
[407983107,1772967039013,-500.0,0.00015,30]
[407983108,1772967039023,-500.0,0.00015,30]
[407983109,1772967039032,-500.0,0.00015,30]
[407983110,1772967039042,-654.54092455,0.00015,30]
[407983111,1772967039051,-500.0,0.00015,30]
[407983112,1772967039065,-651.72850661,0.00015,30]
[407983113,1772967039075,-500.0,0.00015,30]
[407983114,1772967039084,-500.0,0.00015,30]
[407983115,1772967039095,-500.0,0.00015,30]
[407983116,1772967039106,-500.0,0.00015,30]
[407983117,1772967039116,-500.0,0.00015,30]
[407983118,1772967039126,-509.54546032,0.00015,30]
[407983119,1772967039138,-978.42544591,0.00015,30]
[407983120,1772967039147,-500.0,0.00015,30]
[407983121,1772967039159,-500.0,0.00015,30]
[407983122,1772967039170,-500.0,0.00015,30]
[407983123,1772967039180,-524.44932359,0.00015,30]
[407983124,1772967039190,-750.06716672,0.00015,30]
[407983125,1772967039199,-225.51,0.00015017,2]
[407983126,1772967039210,-922.46,0.0001505,2]
[407983127,1772967039221,-1746.44,0.00015068,2]
[407983128,1772967039231,-500.0,0.00015161,2]
[407983129,1772967039245,-613.49,0.00015179,2]
[407983130,1772967039255,-13308.81,0.00015284,2]
[407983131,1772967039267,-150.74,0.00015311,2]
[407983132,1772967039276,-166.4,0.0001533,2]
[407983133,1772967039288,-27604.95646435,0.00015343,2]
[407983134,1772967039298,-225.51,0.00015357,2]
[407983135,1772967039307,-5034.66,0.00015377,2]
[407983136,1772967039316,-922.46,0.00015417,2]
[407983137,1772967039325,-1890.0,0.00015422,2]
[407983138,1772967039335,-17077.73871642,0.00015432,2]
[407983139,1772967039344,-2351.0,0.00015432,2]
[407983140,1772967039354,-608.00046403,0.00015435,2]
[407983141,1772967039363,-1492.0,0.00015453,2]
[407983142,1772967039373,-613.49,0.00015453,2]
[407983143,1772967039383,-433.0,0.00015469,2]
[407983144,1772967039392,-433.26,0.00015471,2]
[407983145,1772967039402,-787.19,0.00015471,2]
[407983146,1772967039411,-672.0,0.00015483,2]
[407983147,1772967039421,-532.85842952,0.00015521,2]
[407983148,1772967039431,-176.5022279,0.00015521,2]
[407983149,1772967039439,-503.94970501,0.00015521,2]
[407983150,1772967039450,-286.15465741,0.00015521,2]
[407983151,1772967039459,-1000.0,0.00015521,2]
[407983152,1772967039469,-1000.0,0.00015521,2]
[407983153,1772967039478,-1000.0,0.00015521,2]
[407983154,1772967039487,-4746.17632907,0.00015539,2]
[407983155,1772967039498,-2000.0,0.0001556,2]
[407983156,1772967039507,-32923.6528,0.00015562,2]
[407983157,1772967039516,-1000.0,0.00015562,2]
[407983158,1772967039525,-500.0,0.00015643,2]
[407983159,1772967039535,-317.0,0.00015649,2]
[407983160,1772967039545,-500.0,0.00015661,2]
[407983161,1772967039554,-785.0,0.00015672,2]
[407983162,1772967039563,-166.66,0.00015677,2]
[407983163,1772967039573,-380.0,0.0001568,2]
[407983164,1772967039582,-225.51,0.00015696,2]
[407983165,1772967039592,-1483.0,0.00015704,2]
[407983166,1772967039608,-403.0,0.00015712,2]
[407983167,1772967039618,-613.49,0.00015727,2]
[407983168,1772967039628,-668.0,0.00015735,2]
[407983169,1772967039638,-1746.44,0.00015753,2]
[407983170,1772967039648,-535.0,0.00015766,2]
[407983171,1772967039657,-922.46,0.00015784,2]
[407983172,1772967039666,-1031.0,0.00015797,2]
[407983173,1772967039675,-867.0,0.00015829,2]
[407983174,1772967039684,-280.80202959,0.00015878,2]
[407983175,1772967039694,-2000.0,0.0001589,2]
[407983176,1772967039703,-27604.95646435,0.00015912,2]
[407983177,1772967039712,-17077.73871642,0.0001599,2]
[407983178,1772967039721,-613.49,0.00016001,2]
[407983179,1772967039730,-225.51,0.00016035,2]
[407983180,1772967039740,-1500.0,0.00016068,2]
[407983181,1772967039749,-1500.0,0.00016068,2]
[407983182,1772967039758,-1500.0,0.00016068,2]
[407983183,1772967039767,-166.4,0.00016096,2]
[407983184,1772967039776,-151.0,0.00016113,2]
[407983185,1772967039785,-7987.25,0.00016116,2]
[407983186,1772967039795,-922.46,0.00016151,2]
[407983187,1772967039804,-166.66,0.00016194,2]
[407983188,1772967039815,-27781.30421866,0.00016218,2]
[407983189,1772967039824,-4746.17632907,0.00016266,2]
[407983190,1772967039833,-613.51,0.00016275,2]
[407983191,1772967039843,-250.0,0.00016289,2]
[407983192,1772967039853,-151.0,0.00016333,2]
[407983193,1772967039864,-151.0,0.00016333,2]
[407983194,1772967039873,-225.51,0.00016374,2]
[407983195,1772967039882,-1746.44,0.00016438,2]
[407983196,1772967039894,-1852.42,0.0001644,2]
[407983197,1772967039904,-27604.95646435,0.00016482,2]
[407983198,1772967039913,-172.49252748,0.00016549,2]
[407983199,1772967039923,-17077.73871642,0.00016549,2]
[407983200,1772967039932,-2000.0,0.00016616,2]
[407983201,1772967039941,-2000.0,0.00016616,2]
[407983202,1772967039952,-2000.0,0.00016616,2]
[407983203,1772967039960,-166.66,0.00016712,2]
[407983204,1772967039970,-166.34,0.00016712,2]
[407983205,1772967039979,-225.51,0.00016713,2]
[407983206,1772967039989,-736.0,0.00016772,2]
[407983207,1772967039998,-21608.5482739,0.00016838,2]
[407983208,1772967040008,-4569.4587435,0.00016838,2]
[407983209,1772967040018,-166.4,0.00016863,2]
[407983210,1772967040028,-280.80202959,0.00016884,2]
[407983211,1772967040038,-3292.0,0.00016975,2]
[407983212,1772967040047,-4746.17632907,0.00016993,2]
[407983213,1772967040060,-300.0,0.00017,2]
[407983214,1772967040071,-505.0,0.00017,2]
[407983215,1772967040080,-27604.95646435,0.00017052,2]
[407983216,1772967040089,-225.51,0.00017052,2]
[407983217,1772967040099,-17077.73871642,0.00017107,2]
[407983218,1772967040109,-157.07,0.00017109,2]
[407983219,1772967040119,-175.654304,0.00017115,2]
[407983220,1772967040129,-2500.0,0.00017164,2]
[407983221,1772967040139,-2500.0,0.00017164,2]
[407983222,1772967040148,-2500.0,0.00017164,2]
[407983223,1772967040157,-166.66,0.00017229,2]
[407983224,1772967040167,-4821.5188369,0.00017268,2]
[407983225,1772967040176,-1019.5840612,0.00017268,2]
[407983226,1772967040186,-910.41051485,0.00017387,2]
[407983227,1772967040195,-395.9396734,0.00017387,2]
[407983228,1772967040204,-225.51,0.00017391,2]
[407983229,1772967040214,-2000.0,0.00017505,2]
[407983230,1772967040223,-27604.95646435,0.00017621,2]
[407983231,1772967040232,-166.4,0.00017629,2]
[407983232,1772967040241,-17077.73871642,0.00017666,2]
[407983233,1772967040250,-3000.0,0.00017712,2]
[407983234,1772967040259,-1652.00387375,0.00017712,2]
[407983235,1772967040268,-3000.0,0.00017712,2]
[407983236,1772967040277,-225.51,0.0001773,2]
[407983237,1772967040286,-166.66,0.00017747,2]
[407983238,1772967040295,-800.0,0.00017808,2]
[407983239,1772967040305,-280.80202959,0.00017889,2]
[407983241,1772967040314,-194.1,0.00017908,2]
[407983242,1772967040323,-497.00011978,0.00018003,2]
[407983243,1772967040333,-225.51,0.0001807,2]
[407983244,1772967040343,-1252.0,0.00018181,2]
[407983245,1772967040352,-27604.95646435,0.00018191,2]
[407983246,1772967040361,-172.49252748,0.00018224,2]
[407983247,1772967040370,-17077.73871642,0.00018224,2]
[407983248,1772967040379,-225.99,0.00018226,2]
[407983249,1772967040389,-1134.47331644,0.0001826,2]
[407983250,1772967040398,-1833.15670856,0.0001826,2]
[407983251,1772967040407,-166.66,0.00018264,2]
[407983252,1772967040417,-150.0,0.00018289,2]
[407983253,1772967040427,-166.4,0.00018396,2]
[407983254,1772967040436,-225.51,0.00018409,2]
[407983255,1772967040445,-157.07,0.00018575,2]
[407983256,1772967040455,-4609.0,0.00018672,2]
[407983257,1772967040464,-225.51,0.00018748,2]
[407983258,1772967040473,-27604.95646435,0.00018761,2]
[407983259,1772967040482,-17077.73871642,0.00018783,2]
[407983260,1772967040491,-280.80202959,0.00018895,2]
[407983261,1772967040501,-327.45,0.00018904,2]
[407983262,1772967040510,-1600.0,0.00018904,2]
[407983263,1772967040519,-446.0,0.00018977,2]
[407983264,1772967040528,-180.56,0.00018991,2]
[407983265,1772967040537,-9000.0,0.00018999,2]
[407983266,1772967040546,-151.0,0.00018999,2]
[407983267,1772967040555,-4474.85265828,0.00018999,2]
[407983268,1772967040564,-250.0,0.00018999,2]
[407983269,1772967040574,-250.0,0.00018999,2]
[407983270,1772967040583,-372.58257451,0.00018999,2]
[407983271,1772967040591,-500.0,0.00018999,2]
[407983272,1772967040600,-3000.0,0.00018999,2]
[407983273,1772967040610,-3000.0,0.00018999,2]
[407983274,1772967040619,-3000.0,0.00018999,2]
[407983275,1772967040628,-3000.0,0.00018999,2]
[407983276,1772967040637,-199.07364582,0.00018999,2]
[407983277,1772967040646,-151.0,0.00018999,2]
[407983278,1772967040656,-3000.0,0.00018999,2]
[407983279,1772967040665,-3000.0,0.00018999,2]
[407983280,1772967040674,-3000.0,0.00018999,2]
[407983281,1772967040683,-1000.0,0.00018999,2]
[407983282,1772967040692,-693.3919763,0.00018999,2]
[407983283,1772967040701,-174.61919141,0.00018999,2]
[407983284,1772967040710,-262.90206542,0.00018999,2]
[407983285,1772967040718,-151.0,0.00018999,2]
[407983286,1772967040727,-156.587,0.00018999,2]
[407983287,1772967040736,-193.30408517,0.00018999,2]
[407983288,1772967040746,-200.0,0.00018999,2]
[407983289,1772967040755,-500.0,0.00018999,2]
[407983290,1772967040764,-500.0,0.00018999,2]
[407983291,1772967040774,-500.0,0.00018999,2]
[407983292,1772967040783,-500.0,0.00018999,2]
[407983293,1772967040791,-500.0,0.00018999,2]
[407983294,1772967040800,-500.0,0.00018999,2]
[407983295,1772967040809,-500.0,0.00018999,2]
[407983296,1772967040819,-500.0,0.00018999,2]
[407983297,1772967040827,-500.0,0.00018999,2]
[407983298,1772967040836,-500.0,0.00018999,2]
[407983299,1772967040845,-500.0,0.00018999,2]
[407983300,1772967040855,-1496.53161165,0.00019,2]
[407983301,1772967040864,-165.93260311,0.00019,2]
[407983302,1772967040873,-350.0,0.00019,2]
[407983303,1772967040882,-379.15763953,0.00019,2]
[407983304,1772967040891,-500.0,0.00019,2]
[407983305,1772967040900,-500.0,0.00019,2]
[407983306,1772967040909,-151.0,0.00019054,2]
[407983307,1772967040918,-719.04747942,0.00019054,2]
[407983308,1772967040927,-225.51,0.00019087,2]
[407983309,1772967040936,-500.0,0.000191,2]
[407983310,1772967040945,-350.0,0.00019103,2]
[407983312,1772967040954,-151.0,0.00019109,2]
[407983313,1772967040963,-745.65223616,0.00019109,2]
[407983314,1772967040972,-166.4,0.00019162,2]
[407983315,1772967040980,-151.0,0.00019164,2]
[407983316,1772967040989,-773.2413689,0.00019164,2]
[407983317,1772967040998,-151.0,0.00019219,2]
[407983320,1772967041007,-801.85129955,0.00019219,2]
[407983322,1772967041016,-496.98,0.00019222,2]
[407983323,1772967041026,-319.0,0.00019222,2]
[407983324,1772967041035,-500.0,0.0001925,2]
[407983325,1772967041043,-500.0,0.0001925,2]
[407983326,1772967041053,-319.0,0.00019253,2]
[407983327,1772967041066,-319.0,0.00019262,2]
[407983328,1772967041075,-151.0,0.00019274,2]
[407983329,1772967041084,-831.51979763,0.00019274,2]
[407983330,1772967041093,-151.0,0.00019329,2]
[407983331,1772967041103,-862.28603014,0.00019329,2]
[407983332,1772967041111,-17814.51700496,0.0001933,2]
[407983333,1772967041249,-558.69299275,0.0001933,2]
[407983334,1772967041260,-1878.66043272,0.0001933,2]
[407983335,1772967041276,-7353.08603392,0.0001933,2]
[407983336,1772967041285,-17077.73871642,0.00019341,2]
[407983337,1772967041294,-446.0,0.00019363,2]
[407983338,1772967041303,-151.0,0.00019384,2]
[407983339,1772967041312,-894.19061326,0.00019384,2]
[407983340,1772967041321,-2000.0,0.000194,2]
[407983341,1772967041330,-336.96121467,0.000194,2]
[407983342,1772967041339,-225.51,0.00019426,2]
[407983343,1772967041349,-151.0,0.00019439,2]
[407983344,1772967041358,-927.27566595,0.00019439,2]
[407983345,1772967041367,-2000.0,0.0001945,2]
[407983346,1772967041376,-319.0,0.00019453,2]
[407983347,1772967041385,-151.0,0.00019494,2]
[407983348,1772967041394,-961.58486559,0.00019494,2]
[407983349,1772967041403,-2000.0,0.000195,2]
[407983350,1772967041413,-181.08010149,0.00019547,2]
[407983351,1772967041423,-272.62944185,0.00019547,2]
[407983352,1772967041432,-200.0,0.00019547,2]
[407983353,1772967041440,-1000.0,0.00019548,2]
[407983354,1772967041450,-293.77158202,0.00019548,2]
[407983355,1772967041459,-151.0,0.00019549,2]
[407983356,1772967041468,-997.16350561,0.00019549,2]
[407983357,1772967041477,-2000.0,0.000196,2]
[407983358,1772967041486,-151.0,0.00019604,2]
[407983359,1772967041495,-496.98,0.00019613,2]
[407983360,1772967041504,-1000.0,0.00019648,2]
[407983361,1772967041517,-319.0,0.00019651,2]
[407983362,1772967041526,-151.0,0.00019659,2]
[407983363,1772967041535,-1204.076,0.000197,2]
[407983364,1772967041554,-2000.0,0.000197,2]
[407983365,1772967041564,-2129.0,0.00019708,2]
[407983366,1772967041573,-151.0,0.00019714,2]
[407983367,1772967041582,-319.0,0.00019728,2]
[407983368,1772967041591,-225.51,0.00019765,2]
[407983369,1772967041601,-151.0,0.00019769,2]
[407983370,1772967041610,-498.88297581,0.00019798,2]
[407983371,1772967041620,-640.08304959,0.00019798,2]
[407983372,1772967041629,-2000.0,0.000198,2]
[407983373,1772967041638,-2000.0,0.000198,2]
[407983374,1772967041647,-151.0,0.00019824,2]
[407983375,1772967041655,-350.0,0.00019851,2]
[407983376,1772967041664,-4745.7529,0.0001987,2]
[407983377,1772967041673,-151.0,0.00019879,2]
[407983378,1772967041682,-2000.0,0.000199,2]
[407983379,1772967041691,-2000.0,0.000199,2]
[407983380,1772967041700,-2000.0,0.000199,2]
[407983381,1772967041709,-2000.0,0.000199,2]
[407983382,1772967041717,-2000.0,0.000199,2]
[407983383,1772967041726,-2000.0,0.000199,2]
[407983384,1772967041735,-2000.0,0.000199,2]
[407983385,1772967041744,-2000.0,0.000199,2]
[407983386,1772967041753,-2000.0,0.000199,2]
[407983387,1772967041762,-2000.0,0.000199,2]
[407983388,1772967041771,-2000.0,0.000199,2]
[407983389,1772967041780,-2000.0,0.000199,2]
[407983390,1772967041789,-172.49252748,0.000199,2]
[407983391,1772967041798,-2000.0,0.000199,2]
[407983392,1772967041807,-17077.73871642,0.000199,2]
[407983393,1772967041816,-910.41051485,0.000199,2]
[407983394,1772967041824,-280.80202959,0.000199,2]
[407983395,1772967041833,-27604.95646435,0.000199,2]
[407983396,1772967041842,-395.9396734,0.000199,2]
[407983397,1772967041851,-10525.08335997,0.000199,2]
[407983398,1772967041861,-6193.0,0.000199,2]
[407983399,1772967041871,-4958.0,0.000199,2]
[407983400,1772967041880,-166.4,0.00019929,2]